[Event "FIDE WSTC Open 50 2025"]
[Site "Prague"]
[Date "2025.02.25"]
[Round "8.23"]
[White "Holemar, David"]
[Black "Minnican, Alan"]
[Result "1/2-1/2"]
[Annotator "TA"]
[ECO "D96"]
[WhiteElo "2150"]
[BlackElo "2039"]
[PlyCount "30"]
[EventDate "2025.02.17"]
[EventType "team-tourn"]
[EventCountry "CZE"]
[SourceTitle "playchess.com"]
[Source "ChessBase"]
[SourceQuality "1"]
[TimeControl "40/5400+30:1800+30"]

{[%evp 19,30,50,60,19,5,-12,0,0,-12,-9,0,-4,18]} 1. d4 {[%emt 0:00:03]} d5 {[%emt 0:00:23]} 2. Nf3 {[%emt 0:02:13]} Nf6 {[%emt 0:00:29]} 3. c4 {[%emt 0:01:54]} c6 {[%emt 0:00:12]} 4. Nc3 {[%emt 0:00:24]} g6 {[%emt 0:00:12]} 5. g3 {[%emt 0:10:35]} Bg7 {[%emt 0:00:44]} 6. Bg2 {[%emt 0:00:07]} O-O {[%emt 0:00:11]} 7. O-O {[%emt 0:00:06]} Ne4 {[%emt 0:02:30]} 8. Qb3 {[%emt 0:05:01]} Nxc3 {[%emt 0:01:21]} 9. bxc3 {[%emt 0:00:36]} dxc4 {[%emt 0:06:42]} 10. Qxc4 {[%emt 0:00:08]} Nd7 {[%emt 0:07:44]} 11. Bf4 {[%emt 0:07:41] D78: Fianchetto Grünfeld: 6 0-0 c6.} Qa5 {[%emt 0:03:30] The position is equal.} 12. Nd2 $146 {[%emt 0:12:30]} (12. e4 Nb6 13. Qd3 Be6 14. Rfc1 Rad8 15. Qe3 Bg4 16. Nd2 Qa3 17. Bc7 Rd7 18. Bxb6 axb6 {½-½ Salemgareev,T (2262)-Drygalov,S (2372) Urals-ch 74th 2016 (5)}) 12... Nb6 {[%emt 0:09:10]} 13. Qd3 {[%emt 0:08:07]} Nd5 {[%emt 0:01:34]} 14. Rfc1 {[%emt 0:00:48]} Nxf4 {[%emt 0:01:26]} 15. gxf4 {[%emt 0:02:33]} Qf5 {[%emt 0:00:46] An uneventful encounter.   Weighted Error Value: White=0.13 (very precise) /Black=0.07 (flawless)   OK:         	White=2     	Black=2} 1/2-1/2

[Event "FIDE WSTC Open 50 2025"]
[Site "Prague"]
[Date "2025.02.25"]
[Round "8.24"]
[White "Hulme, William"]
[Black "Vavra, Michal"]
[Result "1/2-1/2"]
[Annotator "TA"]
[ECO "A45"]
[WhiteElo "1909"]
[BlackElo "1986"]
[PlyCount "42"]
[EventDate "2025.02.17"]
[EventType "team-tourn"]
[EventCountry "CZE"]
[SourceTitle "playchess.com"]
[Source "ChessBase"]
[SourceQuality "1"]
[TimeControl "40/5400+30:1800+30"]

{[%evp 18,42,43,37,47,45,60,51,44,45,62,54,59,33,106,89,77,42,21,28,43,29,32,31,35,42,33]} 1. d4 {[%emt 0:00:05]} Nf6 {[%emt 0:00:09]} 2. Bf4 {[%emt 0:00:15]} e6 {[%emt 0:01:12]} 3. e3 {[%emt 0:02:05]} c5 {[%emt 0:00:55]} 4. c3 {[%emt 0:02:06]} Nc6 {[%emt 0:02:36]} 5. Nf3 {[%emt 0:01:24]} Be7 {[%emt 0:01:21]} 6. h3 {[%emt 0:01:02]} cxd4 {[%emt 0:02:22]} 7. exd4 {[%emt 0:00:50]} O-O {[%emt 0:00:31]} 8. Nbd2 {[%emt 0:00:49]} b6 {[%emt 0:02:15]} 9. Bd3 {[%emt 0:01:05]} Bb7 {[%emt 0:01:38]} 10. O-O {[%emt 0:00:36]} d5 {[%emt 0:04:29] A47: 1 d4 Nf6 2 Nf3 b6: Torre, London and Colle Systems.} 11. Qe2 {[%emt 0:06:41]} Re8 {[%emt 0:04:15]} 12. Ne5 {[%emt 0:00:58]} Nxe5 {[%emt 0:01:37]} 13. Bxe5 {[%emt 0:03:47]} Bd6 $146 {[%emt 0:05:21]} (13... Nd7 14. Bg3 Bf6 15. Nf3 g6 16. h4 Bg7 17. h5 a6 18. Bf4 Nf6 19. hxg6 hxg6 {0-1 Khotenashvili,B (2504)-Kosteniuk,A (2541) Beijing Sportaccord Basque (Women) 2014 (1.16)}) 14. f4 {[%emt 0:01:52]} g6 {[%emt 0:04:55]} 15. Rae1 {[%emt 0:02:01]} Bf8 {[%emt 0:00:46]} (15... Be7 $14) 16. Bb5 $16 {[%emt 0:06:00][%cal Oe5f6] White is much more active.} Nd7 {[%emt 0:00:47]} 17. Bxd7 {[%emt 0:06:41]} Qxd7 {[%emt 0:00:21] Black is weak on the dark squares} 18. Bf6 {[%emt 0:00:42]} Bg7 {[%emt 0:06:23]} 19. Qe5 {[%emt 0:03:20]} Bxf6 {[%emt 0:01:12]} 20. Qxf6 {[%emt 0:00:06]} Qd8 {[%emt 0:02:06]} 21. Qg5 {[%emt 0:01:50]} Kg7 {Weighted Error Value: White=0.10 (very precise) /Black=0.13 (very precise)   Mistake:       	---       	Black=1      Inaccurate:     	White=2     	---        OK:         	White=4     	Black=4      Best:        	---       	Black=1} 1/2-1/2

[Event "FIDE WSTC Open 50 2025"]
[Site "Prague"]
[Date "2025.02.25"]
[Round "8.25"]
[White "Haba, Petr"]
[Black "Sikorova, Olga"]
[Result "1/2-1/2"]
[Annotator "TA"]
[ECO "E46"]
[WhiteElo "2442"]
[BlackElo "2134"]
[PlyCount "53"]
[EventDate "2025.02.17"]
[EventType "team-tourn"]
[EventCountry "CZE"]
[SourceTitle "playchess.com"]
[Source "ChessBase"]
[SourceQuality "1"]
[TimeControl "40/5400+30:1800+30"]

{[%evp 19,53,14,12,11,27,20,36,32,45,31,76,79,86,73,91,87,74,55,64,57,60,56,50,61,64,59,51,38,35,0,0,0,0,-14,-14,-14]} 1. d4 {[%emt 0:00:18]} Nf6 {[%emt 0:00:14]} 2. c4 {[%emt 0:00:06]} e6 {[%emt 0:00:19]} 3. Nc3 {[%emt 0:00:20]} Bb4 {[%emt 0:00:26]} 4. e3 {[%emt 0:00:29]} O-O {[%emt 0:00:45]} 5. Bd2 {[%emt 0:00:37]} b6 {[%emt 0:04:21]} 6. Nf3 {[%emt 0:00:29]} Bb7 {[%emt 0:01:07]} 7. Bd3 {[%emt 0:00:11]} d6 {[%emt 0:03:55]} 8. O-O {[%emt 0:05:40]} Nbd7 {[%emt 0:03:45]} 9. a3 {[%emt 0:08:06]} Bxc3 {[%emt 0:00:20]} 10. Bxc3 {[%emt 0:00:06]} Ne4 {[%emt 0:02:56]} 11. Be1 {[%emt 0:02:30] E21: Nimzo-Indian: 4 Nf3.} f5 {[%emt 0:05:00][%cal Bf7f5,Bf5e4][%mdl 32]} 12. Nd2 $1 {[%emt 0:01:37] 12.Kh1 is more advanced technology.} Qg5 {[%emt 0:08:02] [#] and ...Nxd2 would now be decisive} 13. f4 {[%emt 0:00:55] White is slightly better.} Qh6 {[%emt 0:00:25]} 14. Nxe4 {[%emt 0:00:18]} fxe4 {[%emt 0:01:01]} 15. Be2 {[%emt 0:01:30]} g5 $146 {[%emt 0:07:01][%cal Rg5f4]} (15... Rad8 16. Bg3 e5 17. dxe5 dxe5 18. Qc1 Nc5 19. Qc3 Nd3 20. Bxd3 exd3 21. Qxe5 Qc6 22. Rf2 Rfe8 23. Qg5 d2 24. Rd1 Qxc4 25. Rfxd2 Rxd2 26. Rxd2 Qc1+ {0-1 Prosch,K (1457)-Schmidt,A Schleswig Holstein-ch U18 VM 2003 (5)}) 16. Bg3 {[%emt 0:00:57]} Nf6 {[%emt 0:13:15]} 17. fxg5 {[%emt 0:19:43]} Qxg5 {[%emt 0:00:31]} 18. Rf4 {[%emt 0:00:05]} e5 $1 {[%emt 0:06:32]} 19. Bh4 {[%emt 0:13:33]} Qh6 {[%emt 0:01:38]} 20. dxe5 {[%emt 0:00:08]} dxe5 {[%emt 0:00:23]} 21. Rxf6 {[%emt 0:00:09]} Qxh4 {[%emt 0:01:25]} 22. Rxf8+ {[%emt 0:04:33]} Rxf8 {[%emt 0:00:22]} 23. Qe1 {[%emt 0:00:12] Repels Qf2+} Qg5 {[%emt 0:01:21]} 24. Qg3 {[%emt 0:11:53]} Qxg3 {[%emt 0:00:21] The position is equal.} 25. hxg3 {[%emt 0:00:02]} Rd8 {[%emt 0:04:10]} 26. Rd1 {[%emt 0:00:18]} Rxd1+ {[%emt 0:03:43]} 27. Bxd1 {[%emt 0:00:21] Weighted Error Value: White=0.08 (flawless) /Black=0.09 (flawless)   Inaccurate:     	White=1     	Black=1      OK:         	White=6     	Black=6      Best:        	White=1     	---        Strong:       	White=1     	Black=1} 1/2-1/2

[Event "FIDE WSTC Open 50 2025"]
[Site "Prague"]
[Date "2025.02.25"]
[Round "8.26"]
[White "Folkova, Martina"]
[Black "Zvara, Petr"]
[Result "0-1"]
[Annotator "TA"]
[ECO "B12"]
[WhiteElo "2031"]
[BlackElo "2330"]
[PlyCount "80"]
[EventDate "2025.02.17"]
[EventType "team-tourn"]
[EventCountry "CZE"]
[SourceTitle "playchess.com"]
[Source "ChessBase"]
[SourceQuality "1"]
[TimeControl "40/5400+30:1800+30"]

{[%evp 11,80,20,32,0,4,0,2,0,21,16,52,0,6,-6,29,-74,-50,-50,14,-25,-35,-100,-75,-195,-152,-154,-162,-154,-156,-162,-148,-161,-158,-339,-167,-166,-160,-194,-200,-199,-196,-185,-86,-111,-87,-91,-35,-207,-192,-494,-492,-806,-803,-735,-641,-660,-669,-669,-654,-647,-595,-680,-675,-1056,-1056,-1274,-1186,-29968,-29969,-11021,-9711]} 1. e4 {[%emt 0:00:06]} c6 {[%emt 0:00:33]} 2. d4 {[%emt 0:00:04]} d5 {[%emt 0:00:05]} 3. f3 {[%emt 0:00:09]} dxe4 {[%emt 0:01:59]} 4. fxe4 {[%emt 0:00:05]} e5 {[%emt 0:00:06]} 5. Nf3 {[%emt 0:00:09]} Bg4 {[%emt 0:01:47]} 6. Bc4 {[%emt 0:00:19]} Nd7 {[%emt 0:02:06]} 7. O-O {[%emt 0:01:18][%cal Oc4f7] [#] 7.c3 is the fancy move. B12: Caro-Kann: Advance Variation.} (7. dxe5 Bxf3 8. Qxf3 Nxe5 $17) 7... Ngf6 {[%emt 0:02:04]} 8. c3 {[%emt 0:01:19]} Bd6 {[%emt 0:01:14]} 9. Bg5 {[%emt 0:04:13] The position is equal.} Qe7 {[%emt 0:03:30]} 10. Nbd2 {[%emt 0:02:10]} h6 {[%emt 0:12:07]} 11. Bh4 {[%emt 0:02:13]} (11. Bxf6 $1 $14 Nxf6 12. dxe5 Bc5+ (12... Bxe5 13. Bxf7+ Qxf7 14. Nxe5 $16) 13. Kh1) 11... g5 {[%emt 0:03:01]} 12. Bg3 {[%emt 0:02:38]} Nh5 $146 {[%emt 0:06:57]} ({Predecessor:} 12... O-O-O 13. Bd3 Nh5 14. Bf2 Nf4 15. Nc4 Bc7 16. Bc2 h5 17. Ne3 Bb6 18. a4 a6 {0-1 Sychev,K (2556)-Svane,R (2615) Titled Tuesday intern op 17th Aug blitz 2021 (7)}) 13. Qb3 {[%emt 0:21:12]} (13. Bf2 $11 {remains equal.}) 13... Nxg3 $17 {[%emt 0:01:13]} 14. hxg3 {[%emt 0:03:55][%cal Oc4f7] Black must now prevent Bxf7+!.} O-O {[%emt 0:05:29]} (14... O-O-O $15) 15. Nh2 {[%emt 0:05:25]} Bh5 {[%emt 0:00:08]} 16. g4 {[%emt 0:00:45]} (16. Rae1 $15) 16... Bg6 $36 {[%emt 0:00:54][%mdl 2048] Black is on the roll.} 17. Rad1 {[%emt 0:04:51]} (17. Qxb7 $17 exd4 18. cxd4) 17... b5 {[%emt 0:04:22]} 18. Bd3 {[%emt 0:02:46]} Rad8 {[%emt 0:01:53][%cal Od7c5]} 19. Ndf3 {[%emt 0:01:57]} a6 {[%emt 0:04:19]} 20. a4 {[%emt 0:02:24]} exd4 {[%emt 0:08:51]} 21. cxd4 {[%emt 0:03:13]} Bxe4 {[%emt 0:08:47][%csl Od4,Og2,Og4] White has weak pawns} 22. Rde1 $2 {[%emt 0:06:44]} (22. Rfe1 $17 Bd5 23. Qc2) 22... Bd5 {[%emt 0:00:36] This pair of bishops is nice.} (22... Nc5 $142 $1 {[%cal Rc5b3]} 23. dxc5 Bxc5+ 24. Kh1 Rxd3 25. Qxd3 Bxd3 26. Rxe7 Bxe7) 23. Qc2 $19 {[%emt 0:01:02]} Qf6 {[%emt 0:07:20]} 24. Ne5 {[%emt 0:01:51]} Qg7 {[%emt 0:00:10][%cal Rd7e5]} 25. Nhf3 {[%emt 0:01:13]} Nxe5 {[%emt 0:05:11]} 26. dxe5 {[%emt 0:03:53]} Bxf3 {[%emt 0:00:24]} (26... Bc7 $19 {[%cal Oh6h5] is more deadly. and ...h5! would now be decisive} 27. b3 Rfe8) 27. Rxf3 $17 {[%emt 0:02:01]} Bxe5 {[%emt 0:00:41]} 28. Qxc6 {[%emt 0:01:13]} h5 {[%emt 0:07:39]} (28... Rd6 $17 29. Qc2 bxa4 (29... Bxb2 30. axb5 axb5 31. Bxb5 $17) 30. Qxa4 Bxb2) 29. Qe4 {[%emt 0:01:33]} ({Only move:} 29. gxh5 $15 Bb8 30. Qc5) 29... Rfe8 $19 {[%emt 0:02:26]} (29... Bxb2 30. axb5 Rd4 31. Qe7 $17) 30. Kh1 $2 {[%emt 0:00:18] [#]} (30. Kf1 {is tougher.}) 30... Re6 $1 {[%emt 0:00:46]} (30... Bxb2 $2 31. Qxe8+ Qf8 32. Qe4 $18 (32. Qxf8+ Kxf8 33. gxh5 g4 $18)) 31. Ref1 {[%emt 0:05:37]} (31. Qf5 $142 hxg4 (31... bxa4 32. Bc4 $11) 32. Qxg4) 31... Bf4 {[%emt 0:00:39]} 32. Qf5 {[%emt 0:01:16]} Rf6 {[%emt 0:03:42]} ({Less strong is} 32... bxa4 33. gxh5 Rh6 (33... Qxb2 $2 {too greedy.} 34. Rxf4 gxf4 35. Qg5+ Qg7 36. Qxd8+ Qf8 37. Qg5+ Qg7 38. Qxf4 $18) 34. Qg4 $17) 33. Qh7+ {[%emt 0:09:36]} Qxh7 {[%emt 0:00:08]} 34. Bxh7+ {[%emt 0:00:04]} Kxh7 {[%emt 0:00:07]} 35. gxh5 {[%emt 0:00:09]} Rdd6 {[%emt 0:00:15]} 36. axb5 {[%emt 0:00:19]} axb5 {[%emt 0:00:05]} 37. g3 {[%emt 0:02:25]} Be5 {[%emt 0:00:05]} 38. b3 {[%emt 0:00:10]} g4 {[%emt 0:00:55]} 39. Rf5 {[%emt 0:00:21]} Rxf5 {[%emt 0:00:13]} 40. Rxf5 {[%emt 0:00:01]} f6 {[%emt 0:00:12] Weighted Error Value: White=0.94/Black=0.23 (precise)   Loses game:     	White=2     	---        Mistake:       	White=6     	Black=4      Inaccurate:     	White=2     	Black=2      OK:         	White=8     	Black=7      Best:        	---       	Black=5      Strong:       	---       	Black=1} 0-1

[Event "FIDE WSTC Open 50 2025"]
[Site "Prague"]
[Date "2025.02.25"]
[Round "8.27"]
[White "Konopka, Michal"]
[Black "Svobodova, Michaela"]
[Result "1/2-1/2"]
[Annotator "TA"]
[ECO "D02"]
[WhiteElo "2326"]
[BlackElo "2048"]
[PlyCount "102"]
[EventDate "2025.02.17"]
[EventType "team-tourn"]
[EventCountry "CZE"]
[SourceTitle "playchess.com"]
[Source "ChessBase"]
[SourceQuality "1"]
[TimeControl "40/5400+30:1800+30"]

{[%evp 9,102,2,8,6,40,43,44,35,33,38,40,41,71,19,32,19,31,27,20,-4,0,0,24,-21,-21,-27,-37,-49,-47,-68,-70,-92,-92,-97,-78,-103,-88,-96,-102,-105,-107,-86,-49,-70,-53,-87,-30,-40,-39,-47,-44,-52,-44,-40,-33,-63,-30,-33,-7,-30,0,0,0,0,0,-6,0,0,0,0,0,0,0,-73,0,-12,0,-8,0,0,0,-3,0,-83,0,0,0,0,0,0,0,0,0,0,0]} 1. Nf3 {[%emt 0:00:14]} d5 {[%emt 0:00:14]} 2. d4 {[%emt 0:00:18]} Nf6 {[%emt 0:00:14]} 3. c4 {[%emt 0:06:26]} c6 {[%emt 0:00:13]} 4. g3 {[%emt 0:00:49]} Bf5 {[%emt 0:00:42]} 5. Nc3 {[%emt 0:00:24]} e6 {[%emt 0:01:59]} 6. Nh4 {[%emt 0:00:49] D11: Slav Defence: 3 Nf3 sidelines and 3...Nf6 4 e3 Bg4.} Be4 {[%emt 0:03:01]} 7. f3 {[%emt 0:00:27]} Bg6 {[%emt 0:00:28]} 8. Qb3 {[%emt 0:00:49] White is slightly better.} Qb6 {[%emt 0:01:29]} 9. Nxg6 {[%emt 0:01:42]} hxg6 {[%emt 0:00:43]} 10. c5 {[%emt 0:00:07]} Qc7 {[%emt 0:02:39]} 11. Bf4 {[%emt 0:04:04]} (11. e4 $16) 11... Qc8 $1 $11 {[%emt 0:01:03]} 12. g4 {[%emt 0:15:26]} Be7 {[%emt 0:04:25]} 13. e3 {[%emt 0:01:25]} Nbd7 {[%emt 0:03:35]} 14. Bg2 $146 {[%emt 0:07:09]} (14. O-O-O b6 15. cxb6 axb6 16. Kb1 Qb7 17. Rc1 O-O 18. h4 Ne8 19. e4 b5 20. g5 {½-½ Milov,L (2523)-Kindermann,S (2498) BL2-Ost 1314 2013 (6.1)}) 14... Bd8 {[%emt 0:02:36]} 15. O-O-O {[%emt 0:09:31]} Bc7 {[%emt 0:03:15]} 16. Bxc7 {[%emt 0:12:39]} Qxc7 {[%emt 0:00:14]} 17. g5 {[%emt 0:00:13]} Ng8 {[%emt 0:05:32]} 18. f4 {[%emt 0:01:52]} Ne7 {[%emt 0:03:17]} 19. Ne2 {[%emt 0:01:19]} b6 {[%emt 0:08:21]} 20. cxb6 {[%emt 0:00:59]} Nxb6 {[%emt 0:03:32]} 21. Qc3 {[%emt 0:02:33]} a5 {[%emt 0:08:58]} 22. b3 {[%emt 0:06:21]} a4 {[%emt 0:02:25]} 23. Kd2 {[%emt 0:02:02]} axb3 {[%emt 0:04:11] Black has strong rooks and is better} 24. axb3 {[%emt 0:00:05]} Ra2+ {[%emt 0:01:02]} 25. Ke1 {[%emt 0:00:06]} Kd7 {[%emt 0:00:57]} 26. Kf2 {[%emt 0:04:54]} Qa7 {[%emt 0:03:42]} 27. Rd2 {[%emt 0:02:17] [#] aiming for Rxa2.} Ra8 {[%emt 0:02:22]} (27... Ra3 $1 $17 {[%cal Ob6c4]} 28. Nc1 Nc4) 28. Rb1 {[%emt 0:02:25]} Nbc8 {[%emt 0:10:11]} (28... Rxd2 29. Qxd2 Nbc8 30. Rb2 Nd6) 29. Nc1 {[%emt 0:02:03][%cal Be2c1,Bc1d3,Bd3c5][%mdl 32]} Rxd2+ {[%emt 0:04:24]} 30. Qxd2 {[%emt 0:00:03]} Nd6 {[%emt 0:01:55]} 31. Nd3 {[%emt 0:00:54]} Ke8 {[%emt 0:01:55]} 32. Nc5 {[%emt 0:02:42]} Qa2 {[%emt 0:05:48]} 33. Rb2 {[%emt 0:00:35]} Qa5 {[%emt 0:01:43]} 34. Qc2 {[%emt 0:01:08]} (34. Qxa5 Rxa5 35. Bf1 Nef5 36. Bd3) 34... Ndf5 {[%emt 0:02:33]} 35. Bh3 {[%emt 0:04:45]} Qa1 {[%emt 0:02:46]} 36. Bxf5 {[%emt 0:02:14]} Nxf5 {[%emt 0:01:52]} 37. Na4 {[%emt 0:00:43]} Ne7 {[%emt 0:02:05]} 38. Rb1 {[%emt 0:01:18]} Qa3 {[%emt 0:00:24]} 39. Rb2 {[%emt 0:01:39]} Qa1 {[%emt 0:01:25]} 40. Rb1 {[%emt 0:00:20]} Qa3 {[%emt 0:00:11]} 41. Kg2 {[%emt 0:33:07]} (41. Rb2 $11) 41... Rb8 {[%emt 0:04:53]} (41... f6 $17) 42. Nc5 {[%emt 0:00:00]} Nf5 {[%emt 0:02:11]} 43. Kf2 {[%emt 0:00:00]} Ke7 {[%emt 0:08:11]} (43... f6 {simplifies} 44. Qb2 Ra8 45. Qxa3 Rxa3 46. Rb2 Ke7) 44. Nd3 {[%emt 0:00:00]} Rh8 {[%emt 0:02:47]} 45. Kg1 {[%emt 0:00:00]} Nxe3 {[%emt 0:04:31]} 46. Qc3 {[%emt 0:00:32] [#] White is weak on the light squares} (46. Qxc6 $11 Qa2 47. Qc5+ Kd8 48. Qd6+ Ke8 49. Qb8+ Ke7 50. Qb4+ (50. Qxh8 $2 Qg2#) 50... Kd8 51. Qb8+ Ke7) 46... Qa2 {[%emt 0:05:21]} ({Black should play} 46... Ra8 $1 $17 {Hoping for ...Qa2.} 47. Rc1 Kf8 48. Qb4+ Ke8) 47. Qc5+ {[%emt 0:00:14] The position is equal.} Ke8 {[%emt 0:01:10][%csl Gh8][%cal Ra2h2]} 48. Qxc6+ {[%emt 0:00:04]} Ke7 {[%emt 0:00:35][%csl Gh8][%cal Ra2h2]} 49. Qc7+ {[%emt 0:00:24]} Ke8 {[%emt 0:00:29][%csl Gh8][%cal Ra2h2]} 50. Qc8+ {[%emt 0:00:46]} Ke7 {[%emt 0:00:08][%csl Gh8][%cal Ra2h2]} 51. Qc7+ {[%emt 0:00:02]} (51. Qxh8 $2 Qg2#) 51... Ke8 {[%emt 0:00:20] Weighted Error Value: White=0.11 (very precise) /Black=0.13 (very precise)   Mistake:       	White=3     	Black=3      Inaccurate:     	White=3     	Black=6      OK:         	White=16    	Black=13     Best:        	White=4     	Black=2      Strong:       	---       	Black=1} 1/2-1/2

[Event "FIDE WSTC Open 50 2025"]
[Site "Prague"]
[Date "2025.02.25"]
[Round "8.28"]
[White "Cejkova, Miroslava"]
[Black "Trickov, Vasil"]
[Result "1-0"]
[Annotator "TA"]
[ECO "B23"]
[WhiteElo "1980"]
[BlackElo "2301"]
[PlyCount "81"]
[EventDate "2025.02.17"]
[EventType "team-tourn"]
[EventCountry "CZE"]
[SourceTitle "playchess.com"]
[Source "ChessBase"]
[SourceQuality "1"]
[TimeControl "40/5400+30:1800+30"]

{[%evp 16,81,-16,-30,-2,-51,-49,-40,-14,-58,-4,-25,-25,-29,8,0,6,0,5,-22,-23,-39,0,0,34,37,43,17,14,12,16,6,16,10,27,0,20,11,12,-51,-18,-57,-87,-127,-12,-5,-1,-1,-3,-18,7,13,14,0,23,0,301,300,295,294,304,294,1366,1344,29980,29978,29981,29979]} 1. e4 {[%emt 0:00:04]} c5 {[%emt 0:04:51]} 2. Nc3 {[%emt 0:00:18]} Nc6 {[%emt 0:00:53]} 3. f4 {[%emt 0:00:08]} g6 {[%emt 0:01:13]} 4. Nf3 {[%emt 0:00:10]} Bg7 {[%emt 0:00:19]} 5. Bc4 {[%emt 0:00:39]} d6 {[%emt 0:05:43]} 6. O-O {[%emt 0:00:58]} e6 {[%emt 0:00:50]} 7. d3 {[%emt 0:03:16]} Nge7 {[%emt 0:01:04]} 8. Bb3 {[%emt 0:02:33]} O-O {[%emt 0:02:34]} 9. Qe1 {[%emt 0:09:14]} Na5 {[%emt 0:10:30] B23: Closed Sicilian: Lines without g3.} 10. Nd1 {[%emt 0:24:14]} (10. e5 $11 {is more appropriate.}) 10... Nxb3 {[%emt 0:06:02]} 11. axb3 {[%emt 0:00:08]} b6 $146 {[%emt 0:01:45] Black is slightly better.} ({Predecessor:} 11... Nc6 12. c3 f5 13. Be3 b6 14. Nf2 e5 15. Qd2 d5 16. Nxe5 Nxe5 17. fxe5 dxe4 {0-1 Miellet Bensan,Y (2243)-Borchgrevink,H (2163) Nordic-ch Bergen 2001 (9)}) 12. Ne3 {[%emt 0:07:34][%cal Bd1e3,Be3g4,Bg4f2,Bf2g4][%mdl 32]} h6 {[%emt 0:08:51]} (12... a5 $15) 13. Qg3 {[%emt 0:02:08]} d5 {[%emt 0:05:16]} 14. e5 {[%emt 0:05:07]} d4 {[%emt 0:06:46]} 15. Ng4 {[%emt 0:07:31]} Bb7 {[%emt 0:06:25]} 16. Qh3 {[%emt 0:00:47]} Nf5 {[%emt 0:03:18]} 17. Bd2 {[%emt 0:05:33]} a5 {[%emt 0:02:10]} 18. Rfe1 {[%emt 0:03:49]} Bd5 {[%emt 0:08:47]} 19. Nf2 {[%emt 0:03:27]} f6 {[%emt 0:10:37]} 20. exf6 {[%emt 0:03:40]} Qxf6 {[%emt 0:01:28]} 21. Ng4 {[%emt 0:01:01] Against Ne3} Qe7 {[%emt 0:01:46]} 22. Nge5 {[%emt 0:01:05]} Qe8 {[%emt 0:01:33]} 23. Re2 {[%emt 0:02:59]} Ra7 {[%emt 0:02:12]} 24. Nc4 {[%emt 0:01:00] Excellent horsemanship.} Qd8 {[%emt 0:01:57]} 25. Nce5 {[%emt 0:00:19]} Bxe5 {[%emt 0:02:39]} 26. Rxe5 {[%emt 0:00:33][%cal Ob3b4]} Rh7 {[%emt 0:00:50]} 27. Kf2 {[%emt 0:01:45]} ({Better is} 27. Rae1 $11) 27... Qf6 {[%emt 0:00:50][%cal Og6g5]} (27... g5 $5) 28. Qg4 {[%emt 0:01:16]} Rg7 {[%emt 0:01:04][%cal Og6g5]} (28... g5 {keeps more tension.} 29. Rae1 Rg7 30. fxg5 Ne3) 29. Re2 {[%emt 0:03:08] [#]} g5 {[%emt 0:01:08]} (29... Ne3 $1 $17 {[%cal Re3g4]} 30. Bxe3 dxe3+ 31. Kxe3 Qxb2) 30. fxg5 $11 {[%emt 0:00:36]} hxg5 {[%emt 0:00:02] and ...Nh4 would now be decisive} 31. Kg1 {[%emt 0:02:54][%cal Rf3g5]} Nh6 {[%emt 0:00:41][%csl LRf3,LRg4]} 32. Qg3 {[%emt 0:01:02]} (32. Qh5 Bxf3 33. Qxf3 Qxf3 34. gxf3 Kf7 35. Rae1) 32... g4 {[%emt 0:01:27]} (32... Bxf3 {simplifies} 33. Qxf3 Qxf3 34. gxf3 Kf7) 33. Bxh6 {[%emt 0:02:43]} Qxh6 {[%emt 0:00:15]} 34. Ne5 {[%emt 0:00:09]} Qh5 {[%emt 0:00:59]} 35. Rae1 {[%emt 0:01:12]} Rf3 $2 {[%emt 0:00:16][%mdl 8192]} 36. Nxf3 $18 {[%emt 0:00:49]} ({Not} 36. gxf3 gxf3 $17) 36... gxf3 {[%emt 0:00:01]} 37. Qb8+ {[%emt 0:00:36]} Kh7 {[%emt 0:00:02]} 38. Rf2 {[%emt 0:00:16][%cal Be2f2,Bf2f8,Bf8h8][%mdl 32]} fxg2 $2 {[%emt 0:01:17]} (38... b5 39. g3 (39. Qxb5 Qh3 $16) 39... c4 40. Qxb5 Qh3) 39. Rf8 {[%emt 0:00:58] [#] Threatening mate with Rh8+.} Qg5 {[%emt 0:00:51]} 40. Rh8+ {[%emt 0:01:00]} (40. Qxb6 $2 {too greedy.} Qd2 $19) 40... Kg6 {[%emt 0:00:03]} 41. Qe8+ {[%emt 0:30:21] Weighted Error Value: White=0.15 (very precise) /Black=0.74  Loses game:     	---       	Black=1      Mistake:       	White=2     	Black=3      Inaccurate:     	White=6     	Black=6      OK:         	White=9     	Black=6      Best:        	White=4     	---} 1-0